Cogmind - Beta 15 *** ADVENTURER MODE // 2025.06.09 @ 23:12:23 Player: User15V Result: Destroyed by S-10 Pest with Light Assault Rifle Performance ------------- Evolutions (1) 500 Regions Visited (2) 400 Robots Destroyed (10) 50 Value Destroyed (244) 244 Prototype IDs (0) 0 Alien Tech Used (0) 0 Bonus (2477) 2477 TOTAL SCORE: 3671 Bonus ------- Pure Core 577 Scavenger 1000 Simple Hacker 200 Sticky Parts 500 Pacifist 200 Cogmind --------- Core Integrity 0/400 Matter 199/300 Energy 160/160 System Corruption 0% Temperature Cool (0) Movement Flying (37) Location -9/Materials Parts ------- > --- POWER (1) -------- Light Nuclear Core > --- PROPULSION (3) --- Flight Unit Flight Unit > --- UTILITY (3) ------ Heat Sink > --- WEAPON (2) ------- Light Assault Rifle Light Assault Rifle > --- INVENTORY (0) ---- (None) Peak State ------------ > --- POWER ------------ Light Nuclear Core > --- PROPULSION ------- Flight Unit Flight Unit Flight Unit > --- UTILITY ---------- (None) > --- WEAPON ----------- Light Assault Rifle Heavy Assault Rifle > --- INVENTORY -------- (None) [Rating: 9] Favorites ----------- Power Light Ion Engine Engine Light Ion Engine Power Core Light Nuclear Core Propulsion Wheel Wheel Wheel Flight Unit Flight Unit Utility Heat Sink Device Heat Sink Weapon Assault Rifle Ballistic Gun Assault Rifle Build | -11 -10 -9 ------- Run | Yrd Mat Mat Slots Evolved 2 | . . 2 Power . | . . . Propulsion 1 | . . 1 Utility 1 | . . 1 Weapon . | . . . Parts Attached 14 | 4 . 10 Power 2 | 1 . 1 Engine 1 | 1 . . Core 1 | . . 1 Reactor . | . . . Propulsion 6 | 2 . 4 Treads . | . . . Leg . | . . . Wheel 2 | 2 . . Hover . | . . . Flight 4 | . . 4 Utility 1 | . . 1 Device 1 | . . 1 Storage . | . . . Processor . | . . . Hackware . | . . . Protection . | . . . Artifact . | . . . Weapon 5 | 1 . 4 Energy Gun . | . . . Energy Cannon . | . . . Ballistic Gun 5 | 1 . 4 Ballistic Cannon . | . . . Launcher . | . . . Special Weapon . | . . . Impact Weapon . | . . . Slashing Weapon . | . . . Piercing Weapon . | . . . Special Melee Weapon . | . . . Unidentified Prototypes . | . . . Parts Lost 8 | . . 8 Power 1 | . . 1 Propulsion 4 | . . 4 Utility . | . . . Weapon 3 | . . 3 Highest Loss Streak 5 | . . 5 To Critical Strikes . | . . . Average Backups . | . . . Power . | . . . Propulsion . | . . . Utility . | . . . Weapon . | . . . Tool/Special . | . . . Unused Backups . | . . . Power . | . . . Propulsion . | . . . Utility . | . . . Weapon . | . . . Tool/Special . | . . . Average Slot Usage (%) 44 | . 57 42 Engine 5 | . 14 3 Core 1 | . . 1 Wheel 13 | . 28 10 Flight 8 | . . 10 Ballistic Gun 15 | . 14 16 Peak Build Rating 9 | 4 4 9 Average Rating 4 | 2 4 4 On Entrance 2 | . 4 4 Naked Turns . | . . . Heaviest Build 9 | 5 5 9 Greatest Support 20 | 20 20 20 Greatest Overweight (x) 1 | . . 1 Average Overweight (x) . | . . . Largest Inventory Capacity . | . . . Average Capacity . | . . . Most Carried . | . . . Average Carried . | . . . Final Capacity . | . . . Final Carried . | . . . Class Distribution -------------------- 79% | Mutant 20% | Scavenger-Mutant Dominant Class ---------------- Mutant | -10/Materials Mutant | -9/Materials Resources | -11 -10 -9 ----------- Run | Yrd Mat Mat Matter Collected 367 | 235 . 132 Remotely . | . . . Salvage Created 305 | . . 305 Parts 29 | . . 29 Haulers Intercepted . | . . . Recyclers Shooed 1 | . . 1 Parts Field Recycled . | . . . Retrieved Matter . | . . . Parts Self-Destructed . | . . . Prevented . | . . . Kills | -11 -10 -9 ------- Run | Yrd Mat Mat Combat Hostiles Destroyed 10 | . . 10 Guns 10 | . . 10 Classes Destroyed 4 | . . 4 Swarmer 5 | . . 5 Grunt 3 | . . 3 Duelist 1 | . . 1 Sentry 1 | . . 1 Best Kill Streak 6 | . . 6 Combat Bots Only 6 | . . 6 Max Kills in Single Turn 1 | . . 1 Gunslinging . | . . . Exploded . | . . . Melee . | . . . Uniques/NPCs Destroyed . | . . . Combat | -11 -10 -9 -------- Run | Yrd Mat Mat Hostile Shots Fired 114 | . . 114 Missed 30 | . . 30 Hits 84 | . . 84 Melee 4 | . . 4 Projectile 80 | . . 80 Critical Strikes 2 | . . 2 Damage Taken 854 | . . 854 Core 403 | . . 403 Absorbed by Shields . | . . . Ignored by Resistances 250 | . . 250 Core Remaining (%) 100 | 100 100 . Volleys Fired 46 | . . 46 Largest 2 | . . 2 Hottest 43 | . . 43 Shots Fired 68 | . . 68 Gun 68 | . . 68 Cannon . | . . . Launcher . | . . . Special . | . . . Kinetic 68 | . . 68 Thermal . | . . . Explosive . | . . . Electromagnetic . | . . . Robot Hit Streak 20 | . . 20 Robot Miss Streak 4 | . . 4 Penetration Max . | . . . Secondary Targets . | . . . Shots Hit Robots 52 | . . 52 Core Hits 17 | . . 17 Critical Kills . | . . . Critical Parts Destroyed 1 | . . 1 Critical Strikes 1 | . . 1 Destroy 1 | . . 1 Melee Attacks . | . . . Impact . | . . . Slashing . | . . . Piercing . | . . . Sneak Attacks . | . . . Combat Hostiles . | . . . Follow-up Attacks . | . . . Damage Inflicted 646 | . . 646 Guns 646 | . . 646 Cannons . | . . . Explosions . | . . . Melee . | . . . Ramming . | . . . Kinetic 646 | . . 646 Thermal . | . . . Explosive . | . . . Electromagnetic . | . . . Impact . | . . . Slashing . | . . . Piercing . | . . . Highest Corruption . | . . . Average Corruption . | . . . Corruption Purged . | . . . Corruption Blocked . | . . . Overload Shots . | . . . Overflow Damage . | . . . Projectiles . | . . . Explosions . | . . . Melee . | . . . Knockbacks . | . . . Impact . | . . . Kinetic . | . . . Secondary . | . . . Self-Inflicted Damage . | . . . Shots . | . . . Rammed . | . . . Targets Rammed . | . . . Kicked . | . . . Crushed . | . . . Highest Temperature 17 | . . 17 Average Temperature 9 | . . 9 Received Heat Transfer 357 | . . 357 Siege Activations . | . . . Martial Activations . | . . . Shielding Activations . | . . . Robots Disrupted . | . . . Combat Hostiles . | . . . Robots Corrupted . | . . . Combat Hostiles . | . . . Parts Fried . | . . . Impact Corruptions . | . . . Robots Melted . | . . . Combat Hostiles . | . . . Parts Melted . | . . . Heat Transferred . | . . . Parts Sabotaged . | . . . Parts Stolen . | . . . Parts Stripped . | . . . Power Chain Reactions . | . . . Alert | -11 -10 -9 ------- Run | Yrd Mat Mat Maximum Alert Level . | . . . Low Security (%) 100 | 100 100 100 Level 1 . | . . . Level 2 . | . . . Level 3 . | . . . Level 4 . | . . . Level 5 . | . . . High Security . | . . . Max Security . | . . . Peak Influence 190 | . . 190 Initial . | . . . Average 44 | . . 59 Influence Increases 310 | . . 310 Destroy 0b10 Robot/C 200 | . . 200 Destroy Leader 50 | . . 50 Lose Combat Pursuer 60 | . . 60 Influence Decreases 140 | . . 140 Time Decay 70 | . . 70 Lost Part 70 | . . 70 Squads Dispatched 2 | . . 2 Investigation . | . . . Extermination . | . . . Reinforcement 2 | . . 2 Assault . | . . . Garrison . | . . . Intercept . | . . . Searches Triggered . | . . . Construction Impeded . | . . . Haulers Reinforced . | . . . Active Scanning Responses . | . . . Cargo Convoy Interrupts . | . . . Stealth | -11 -10 -9 --------- Run | Yrd Mat Mat Distress Signals 3 | . 1 2 Communications Jammed . | . . . Distress Signals . | . . . Times Spotted 26 | . . 26 Peak Tracking Total 9 | . . 9 Tactical Retreats 2 | . . 2 Traps | -11 -10 -9 ------- Run | Yrd Mat Mat Traps Triggered . | . . . Indirectly . | . . . Trap Hack Attempts . | . . . Triggered . | . . . Disarmed . | . . . Reprogrammed . | . . . Reused . | . . . Traps Extracted . | . . . Installed . | . . . Triggered . | . . . Machines | -11 -10 -9 ---------- Run | Yrd Mat Mat Machines Disabled . | . . . Max in Single Turn . | . . . Machines Repaired . | . . . Machines Dismantled . | . . . Machines Sabotaged . | . . . Overloaded Fab Kills . | . . . Hacking | -11 -10 -9 --------- Run | Yrd Mat Mat Machines Accessed . | . . . Terminals . | . . . Fabricators . | . . . Repair Stations . | . . . Recycling Units . | . . . Scanalyzers . | . . . Garrison Access . | . . . Total Hacks . | . . . Successful . | . . . Failed . | . . . Catastrophic . | . . . Database Lockouts . | . . . Manual . | . . . Terminals . | . . . Fabricators . | . . . Repair Stations . | . . . Recycling Units . | . . . Scanalyzers . | . . . Garrison Access . | . . . Terminal Hacks . | . . . Fabricator Hacks . | . . . Repair Station Hacks . | . . . Recycling Unit Hacks . | . . . Scanalyzer . | . . . Garrison Access Hacks . | . . . Unauthorized Hacks . | . . . Terminals . | . . . Fabricators . | . . . Repair Stations . | . . . Recycling Units . | . . . Scanalyzers . | . . . Garrison Access . | . . . Data Cores Recovered . | . . . Used . | . . . Hacking Detections . | . . . Full Trace Events . | . . . Feedback Events . | . . . Feedback Blocked . | . . . Robot Schematics Acquired . | . . . Robots Built . | . . . Authchips . | . . . Time . | . . . Total Robot Build Rating . | . . . Part Schematics Acquired . | . . . Parts Built . | . . . Authchips . | . . . Time . | . . . Total Part Build Rating . | . . . Parts Repaired . | . . . Time . | . . . Parts Recycled . | . . . Recycled Matter . | . . . Retrieved Matter . | . . . Retrieved Components . | . . . Parts Scanalyzed . | . . . Part Schematics Acquired . | . . . Parts Damaged . | . . . Bothacking | -11 -10 -9 ------------ Run | Yrd Mat Mat Used RIF Installer . | . . . Robots Hacked . | . . . Non-combat . | . . . Combat . | . . . Robot Hacks Applied . | . . . Relay Couplers Released . | . . . Fabnet Peak Effective % . | . . . Robots Rewired . | . . . Allies Hacked . | . . . Hacks Repelled . | . . . Allies | -11 -10 -9 -------- Run | Yrd Mat Mat Total Allies . | . . . Largest Group . | . . . Highest-Rated Group . | . . . Highest-Rated Ally . | . . . Total Orders . | . . . Ally Attacks . | . . . Total Damage . | . . . Kills . | . . . Allies Corrupted . | . . . Allies Melted . | . . . Intel | -11 -10 -9 ------- Run | Yrd Mat Mat Active Infowar (turns) . | . . . Robot Analysis Total . | . . . Derelict Logs Recovered . | . . . Drone Launches . | . . . Drone Recoveries . | . . . Exploration | -11 -10 -9 ------------- Run | Yrd Mat Mat Turns Passed 314 | 42 41 231 Spaces Moved 280 | 48 52 180 Core 8 | 7 . 1 Treads . | . . . Legs . | . . . Wheels 175 | 41 52 82 Hover . | . . . Flight 97 | . . 97 Fastest Speed 34 | 50 80 34 Average Speed 64 | 75 80 57 Slowest Speed 117 | 80 80 117 Overloaded Moves . | . . . Propulsion Burnouts . | . . . Robots Hopped . | . . . Potential Cave-ins . | . . . Cave-ins Triggered . | . . . Exploration Rate (%) 13 | 4 16 20 Regions Visited 2 Branch Regions . Pre-discovered Areas . | . . . Known Exits Taken . | . . . Unknown Exits Taken 2 | 1 1 . Scrap Searched . | . . . Spaces Dug . | . . . Terrain Destroyed . | . . . Melee . | . . . Projectile . | . . . AOE . | . . . Terrain Rammed . | . . . Walls Destroyed . | . . . Machines Disabled . | . . . Actions | -11 -10 -9 --------- Run | Yrd Mat Mat Total 341 | 51 51 239 Wait 2 | . . 2 Move 278 | 47 51 180 Hop . | . . . Pick Up . | . . . Fast Attach 15 | 4 . 11 Attach . | . . . Detach . | . . . Swap . | . . . Drop . | . . . Fire 46 | . . 46 Melee . | . . . Ram . | . . . Kick . | . . . Crush . | . . . Escape Stasis . | . . . Rewire . | . . . Trap . | . . . Miscellaneous . | . . . Route ------- -11/Scrapyard -10/Materials -9/Materials History --------- Turn | Location | Event 25 | -11/Scrapyard | Discovered new exit (range 13) 43 | -11/Scrapyard | Entered Materials 73 | -10/Materials | Discovered new exit (range 14) 84 | -10/Materials | Entered another Materials area 84 | -9/Materials | Evolved 2 slots: Propulsion x1, Utility x1 199 | -9/Materials | Core integrity fell below 50% 213 | -9/Materials | Core integrity fell below 20% 226 | -9/Materials | Lost 5 parts (1p2n2w) 315 | -9/Materials | Destroyed by S-10 Pest with Light Assault Rifle Last Messages --------------- G-34 Mercenary. 00260_ S-10 Pest destroyed. 00263_ R-06 Scavenger collects Lgt. Assault Rifle. 00267_ R-06 Scavenger collects Lgt. Ion Engine. 00268_ Flight Unit destroyed. 00271_ S-10 Pest destroyed. 00274_ Acquired 16 matter. 00275_ Acquired Lgt. Nuclear Core. 00283_ Acquired Flight Unit. 00285_ Hvy. Assault Rifle destroyed. 00287_ Acquired Lgt. Assault Rifle. 00296_ G-34 Mercenary destroyed. 00299_ Acquired 17 matter. 00299_ Acquired 39 matter. 00300_ Acquired Heat Sink. 00302_ Acquired 10 matter. 00314_ Flight Unit destroyed. 00314_ ALERT: Hostiles spotted, dispatching reinforcements to Terminal M003. Map ----- +----------------------------------------------------+ | | | | | | | | | | | | | | | | | | | | | | | | | | | ?????????????????????????????????????????????????? | | ?????????????????????????????????????????????????? | | ??########???????????????????????????????????????? | | ??# !#???????????????????????????????????????? | | ??# #??????#????????????????????????????????? | | ??+ """ ######## ???????????????????????????????? | | ??# "R #****//# "??????????????????????????????? | | ??# """ #* **//# ?????????????????????????????? | | ???? # #? ????????????????????????????? | | ######+### ####+######+########+###?????????? | | = ????????? | | === u u s ????????? | | = s@s s ????????? | | #####+##### ############### # #??????????? | | #?# ## #???????????????? #?????????????????? | | #?# """ ## #???????????????????????????????????? | | #?# """ ## #???????????????????????????????????? | | #?# """ ## #???????????????????????????????????? | | #?# ## #???????????????????????????????????? | | #?# [ ## #???????????????????????????????????? | | #?###+##### #???????????????????????????????????? | | #???# #???? #???????????????????????????????????? | | #???# #???? ????????????????????????????????????? | | #???# #???? ????????????????????????????????????? | | #???# #???? ????????????????????????????????????? | | #???# #???? ????????????????????????????????????? | | #???# #???? ????????????????????????????????????? | | #??## ##??? ????????????????????????????????????? | | #??# #????????????????????????????????????????? | | ##??# #????????????????????????????????????????? | | ##??# #????????????????????????????????????????? | | #??# #????????????????????????????????????????? | | #??# #????????????????????????????????????????? | | #??# #????????????????????????????????????????? | | ##??# #????????????????????????????????????????? | | ##### #????????????????????????????????????????? | | + #????????????????????????????????????????? | +----------------------------------------------------+ Best States ------------- Heat Dissipation 38 Energy Generation 14 Energy Capacity 160 Matter Stores 295 Matter Capacity 300 Sight Range 16 Terrain Scan Density 10 Resistance: KI 20 Resistance: TH 20 Resistance: EX 20 Resistance: EM 20 Resistance: I 20 Resistance: S 20 Resistance: P 20 Evasion (%) 63 Offensive Hacking 10 Item Schematics ----------------- None Robot Schematics ------------------ None Fabricated ------------ Nothing Repaired ---------- Nothing Alien Tech Used ----------------- None Achievements -------------- None Challenges ------------ Pure Core Scavenger Simple Hacker Sticky Parts Game ------ Seed PulseMasterTube Manual? 0 Play Time 00:06:15 Cumulative 480.0 hours Start 2025.06.09 @ 23:08:56 End 2025.06.09 @ 23:12:23 Sessions 1 Manual Loads 0 Difficulty Adventurer Special Mode None Game No. 207 Rogue 104 Adventurer 103 Explorer 0 Win Type - Total 30 Types 15/5/0/5/1/1/0/0/1/2 Lore% 85 Gallery% 90 Achievement% 85 Wizard Run 0 Options --------- Layout 2 ASCII 0 Keyboard 0 Movement Mouse Keybinds 0 Fullscreen 2 Font 24/Smallcaps Map View 50x44 Zoom Use 0% Tactical HUD 1 Map Filters NONE Filters NONE Steam 1 RUN: b233e957-848e-41a4-99b3-79c623c74b22